fUSD/lending_fUSD_20250818
["ID","MTS","AMOUNT","RATE_DAILY","PERIOD"]
[380035944,1755492639427,-151.0,0.00010993,2]
[380035945,1755492639436,-151.0,0.00010993,2]
[380035946,1755492639447,-300.0,0.00010993,2]
[380035947,1755492639456,-151.0,0.00010993,2]
[380035948,1755492639465,-151.0,0.00010993,2]
[380035949,1755492639474,-151.0,0.00010993,2]
[380035950,1755492639483,-151.0,0.00010993,2]
[380035951,1755492639493,-151.0,0.00010993,2]
[380035952,1755492639503,-151.0,0.00010993,2]
[380035953,1755492639512,-151.0,0.00010993,2]
[380035954,1755492639522,-151.0,0.00010993,2]
[380035955,1755492639531,-151.0,0.00010993,2]
[380035956,1755492639540,-151.0,0.00010993,2]
[380035957,1755492639549,-268.12921336,0.00010993,2]
[380035958,1755492639559,-500.0,0.00010993,2]
[380035959,1755492639568,-263.68857198,0.00010993,2]
[380035960,1755492639577,-151.0,0.00010993,2]
[380035961,1755492639586,-7544.3,0.00010999,2]
[380035962,1755492639596,-7830.27,0.00010999,2]
[380035963,1755492639605,-1000.0,0.00010999,2]
[380035964,1755492639614,-1000.0,0.00010999,2]
[380035965,1755492639623,-1000.0,0.00010999,2]
[380035966,1755492639633,-1000.0,0.00010999,2]
[380035967,1755492639642,-150.0,0.00010999,2]
[380035968,1755492639652,-150.0,0.00010999,2]
[380035969,1755492639661,-150.0,0.00010999,2]
[380035970,1755492639670,-150.0,0.00010999,2]
[380035971,1755492639680,-150.0,0.00010999,2]
[380035972,1755492639689,-150.0,0.00010999,2]
[380035973,1755492639698,-150.0,0.00010999,2]
[380035974,1755492639707,-9435865.52575908,0.00011,2]
[380035975,1755492639716,-448330.91,0.00011,2]
[380035976,1755492639725,-21000.93,0.00011,2]
[380035977,1755492639734,-8243880.86376807,0.00011,2]
[380035978,1755492639773,-1969.51895633,0.00011,2]
[380035987,1755492640943,-42343.10747162,0.00011,2]
[380035988,1755492641109,-122.10081209,0.00011,2]
[380035989,1755492641681,-295.16904813,0.00011,2]
[380035994,1755492644800,-1000.0,0.000108,2]
[380035995,1755492644809,-6882.67706893,0.00011,2]
[380035996,1755492644829,-5122.35507828,0.00011,2]
[380035997,1755492644962,-732.4156999,0.00011,2]
[380035998,1755492644978,-1478.18106911,0.00011,2]
[380035999,1755492645049,-122.06107168,0.00011,2]
[380036011,1755492685654,-167.92,9.615e-05,2]
[380036012,1755492696854,-43.01071343,9.615e-05,2]
[380036013,1755492696885,-170.85162123,9.615e-05,2]
[380036014,1755492697164,-43.01071343,9.615e-05,2]
[380036015,1755492697196,-170.85162123,9.615e-05,2]
[380036016,1755492697218,-124.58236678,9.615e-05,2]
[380036019,1755492734765,-13.04470144,9.615e-05,2]
[380036020,1755492734778,-148.51059712,9.615e-05,2]
[380036021,1755492734788,-13.04470144,9.615e-05,2]
[380036022,1755492754322,-410.40307,0.00016012,30]
[380036023,1755492754345,-566.32861,0.00016012,30]
[380036024,1755492754366,-566.32861,0.00016012,30]
[380036025,1755492754388,-566.32861,0.00016012,30]
[380036026,1755492754409,-566.32861,0.00016012,30]
[380036027,1755492754431,-437.36067,0.00016012,30]
[380036028,1755492754453,-437.36067,0.00016012,30]
[380036029,1755492754476,-437.36067,0.00016012,30]
[380036030,1755492754498,-437.36067,0.00016012,30]
[380036031,1755492754518,-437.36069,0.00016012,30]
[380036032,1755492754541,-566.49873,0.00016012,30]
[380036033,1755492754562,-566.49873,0.00016012,30]
[380036034,1755492754584,-566.49873,0.00016012,30]
[380036035,1755492754605,-566.49873,0.00016012,30]
[380036036,1755492754625,-566.49873,0.00016012,30]
[380036037,1755492754646,-150.0,0.00016012,30]
[380036038,1755492754667,-1818.34394,0.00016012,30]
[380036039,1755492754687,-1818.34394,0.00016012,30]
[380036040,1755492754708,-1818.34394,0.00016012,30]
[380036041,1755492754729,-1818.34394,0.00016012,30]
[380036042,1755492754749,-1818.34398,0.00016012,30]
[380036043,1755492759362,-264.22,9.525e-05,2]
[380036044,1755492759697,-264.22,9.615e-05,2]
[380036045,1755492759718,-164.59400507,9.615e-05,2]
[380036046,1755492759728,-217.33867915,9.615e-05,2]
[380036047,1755492760834,220.67613326,9e-05,2]
[380036048,1755492763308,-357.67763832,9e-05,2]
[380036049,1755492768468,-297.98884539,9e-05,2]
[380036050,1755492771392,-200.0,9e-05,2]
[380036051,1755492773678,-171.79,9e-05,2]
[380036052,1755492775116,-156.40328572,9e-05,2]
[380036053,1755492779057,-175.46398546,9e-05,2]
[380036054,1755492781335,-200.71738495,9e-05,2]
[380036055,1755492782966,-200.0,9e-05,2]
[380036056,1755492783658,-124.43778415,9e-05,2]
[380036057,1755492856266,-11.94721921,9.615e-05,2]
[380036058,1755492857015,-216.45477868,9.615e-05,2]
[380036059,1755492857024,-11.94721921,9.615e-05,2]
[380036060,1755492862002,-25.20821666,9.615e-05,2]
[380036061,1755492862030,-116.61356668,9.615e-05,2]
[380036062,1755492862039,-25.20821666,9.615e-05,2]
[380036063,1755492869379,-78.91320795,9.615e-05,2]
[380036064,1755492869400,-108.82999142,9.615e-05,2]
[380036065,1755492869410,-78.91320795,9.615e-05,2]
[380036066,1755492899584,3055.535018,0.00014,10]
[380036067,1755492918353,182.939528,0.00014,10]
[380036068,1755492935814,170.0,0.00010023,7]
[380036069,1755493228725,1578.0,0.00014,10]
[380036071,1755493316794,2000.0,0.00012,7]
[380036072,1755493493942,-150.0,9.6e-05,2]
[380036073,1755493494450,-244.08432008,9.615e-05,2]
[380036074,1755493507267,-422.98857487,9.615e-05,2]
[380036075,1755493517611,-903.44660848,9.615e-05,2]
[380036076,1755493530096,-250.0,9.615e-05,2]
[380036077,1755493543632,-11.16713112,9.615e-05,2]
[380036078,1755493543812,-168.31336545,9.615e-05,2]
[380036079,1755493556248,-221.27229224,9.615e-05,2]
[380036080,1755493568485,-300.0,9.615e-05,2]
[380036081,1755493580170,-159.88,9.615e-05,2]
[380036082,1755493593690,-139.64829224,9.615e-05,2]
[380036083,1755493594578,-20.70341552,9.615e-05,2]
[380036085,1755493606407,-154.06672646,9.614e-05,2]
[380036086,1755493618033,-219.66017938,9.614e-05,2]
[380036087,1755493618107,-126.27309416,9.614e-05,2]
[380036088,1755493629939,-163.1615912,9.614e-05,2]
[380036089,1755493642157,-71.21474062,9.614e-05,2]
[380036090,1755493642405,-9.85051876,9.614e-05,2]
[380036091,1755493663206,-150.0,9.614e-05,2]
[380036092,1755493675893,-16.45933044,9.614e-05,2]
[380036093,1755493675920,-88.90037564,9.614e-05,2]
[380036094,1755493675990,-87.5572836,9.614e-05,2]
[380036095,1755493688366,-151.0,9.614e-05,2]
[380036104,1755493712277,-147.27669576,9.614e-05,2]
[380036106,1755493738146,201.72330424,9.613e-05,2]
[380036107,1755493748870,-150.0,9.4e-05,2]
[380036108,1755493760815,-71.90765716,9.613e-05,2]
[380036109,1755493763274,160.8335616,1e-05,2]
[380036111,1755493774090,-128.77262453,9.613e-05,2]
[380036112,1755493774835,-97.59641407,9.613e-05,2]
[380036113,1755493783018,300.0,0.00014,10]
[380036114,1755493785226,-326.84117971,9.613e-05,2]
[380036115,1755493785423,-4.30190492,9.613e-05,2]
[380036116,1755493797302,-197.42139932,9.613e-05,2]
[380036117,1755493797784,-147.17293702,9.613e-05,2]
[380036118,1755493810634,-172.78277847,9.613e-05,2]
[380036120,1755493815002,300.0,0.00014,10]
[380036121,1755493823726,-138.22586466,9.613e-05,2]
[380036122,1755493823755,-76.99382908,9.613e-05,2]
[380036123,1755493823799,-278.14783405,9.613e-05,2]
[380036125,1755493832568,-910.38,9.725e-05,2]
[380036126,1755493832578,-135.72500325,9.805e-05,2]
[380036130,1755493832607,-382.99189119,9.805e-05,2]
[380036132,1755493832617,-164.06343228,9.805e-05,2]
[380036134,1755493832627,-394.80338304,9.805e-05,2]
[380036136,1755493832638,-805.19661696,9.805e-05,2]
[380036138,1755493832648,-85.64278304,9.806e-05,2]
[380036179,1755493838233,-694.46353124,9.806e-05,2]
[380036180,1755493838247,-2280.87368572,9.806e-05,2]
[380036181,1755493838260,-1000.0,9.819e-05,2]
[380036182,1755493838271,-300.0,9.84e-05,2]
[380036183,1755493838281,-300.0,9.84e-05,2]
[380036184,1755493838291,-797.31,9.841e-05,2]
[380036185,1755493838300,-250.0,9.88e-05,2]
[380036186,1755493838310,-1200.0,9.954e-05,2]
[380036187,1755493838320,-387.7,9.99e-05,2]
[380036188,1755493838329,-387.33,9.998e-05,2]
[380036189,1755493838339,-289.09,9.998e-05,2]
[380036190,1755493838349,-151.0,0.0001,2]
[380036191,1755493838359,-500.0,0.00010137,2]
[380036192,1755493838369,-300.0,0.00010299,2]
[380036193,1755493838379,-1800.0,0.000103,3]
[380036194,1755493838388,-500.0,0.00010384,2]
[380036195,1755493838398,-3600.0,0.000104,3]
[380036196,1755493838408,-1024.74,0.000104,2]
[380036197,1755493838417,-5400.0,0.000105,3]
[380036198,1755493838427,-250.0,0.0001056,2]
[380036199,1755493838437,-150.0,0.0001058,2]
[380036200,1755493838446,-4987.55979163,0.000106,3]
[380036201,1755493838514,-2212.44020837,0.000106,3]
[380036203,1755493838525,-9100.0,0.000107,3]
[380036205,1755493838537,-1680.0,0.00010785,2]
[380036206,1755493838551,-3000.0,0.00010794,2]
[380036207,1755493838560,-248.71531821,0.00010794,2]
[380036208,1755493838570,-1000.0,0.000108,2]
[380036209,1755493838580,-1800.0,0.000108,3]
[380036210,1755493838590,-420.0,0.00010824,2]
[380036211,1755493838603,-150.0,0.00010889,2]
[380036212,1755493838613,-7000.0,0.0001089,2]
[380036213,1755493838622,-7000.0,0.0001089,2]
[380036214,1755493838632,-7000.0,0.0001089,2]
[380036215,1755493838641,-7000.0,0.0001089,2]
[380036216,1755493838651,-2500.0,0.000109,2]
[380036217,1755493838660,-2500.0,0.000109,2]
[380036218,1755493838669,-235.26154415,0.000109,2]
[380036219,1755493838679,-158.9275202,0.000109,2]
[380036220,1755493838689,-334.7243,0.000109,2]
[380036221,1755493838698,-1251.40943873,0.000109,2]
[380036222,1755493838707,-25508.1228,0.000109,2]
[380036223,1755493838718,-1800.0,0.000109,3]
[380036224,1755493838728,-2302.43875743,0.000109,2]
[380036225,1755493838737,-1111.5998,0.000109,2]
[380036226,1755493838746,-6654.4074,0.000109,2]
[380036227,1755493838755,-79356.4678,0.000109,2]
[380036228,1755493838765,-442.41526591,0.000109,2]
[380036229,1755493838775,-1160.3069,0.00010904,2]
[380036230,1755493838785,-2671.19095307,0.0001093,2]
[380036231,1755493838794,-150.0,0.00010959,2]
[380036232,1755493838803,-343.0,0.00010959,2]
[380036233,1755493838812,-150.0,0.00010959,2]
[380036234,1755493838822,-500.0,0.00010973,2]
[380036235,1755493838831,-500.0,0.00010973,2]
[380036236,1755493838840,-500.0,0.00010973,2]
[380036237,1755493838850,-500.0,0.00010973,2]
[380036238,1755493838860,-500.0,0.00010973,2]
[380036239,1755493838871,-500.0,0.00010973,2]
[380036240,1755493838882,-500.0,0.00010973,2]
[380036241,1755493838891,-500.0,0.00010973,2]
[380036242,1755493838900,-500.0,0.00010973,2]
[380036243,1755493838909,-500.0,0.00010973,2]
[380036244,1755493838918,-500.0,0.00010973,2]
[380036245,1755493838928,-500.0,0.00010973,2]
[380036246,1755493838937,-500.0,0.00010973,2]
[380036247,1755493838946,-500.0,0.00010973,2]
[380036248,1755493838956,-527.74833519,0.00010973,2]
[380036249,1755493838966,-518.11592461,0.00010973,2]
[380036250,1755493838975,-501.3536025,0.00010973,2]
[380036251,1755493838985,-500.0,0.00010973,2]
[380036252,1755493838994,-500.0,0.00010973,2]
[380036253,1755493839005,-629.80551833,0.00010973,2]
[380036254,1755493839016,-500.0,0.00010973,2]
[380036255,1755493839028,-172.63172576,0.00010973,2]
[380036256,1755493839038,-500.06107947,0.00010973,2]
[380036257,1755493839047,-500.0,0.00010973,2]
[380036258,1755493839058,-510.13897176,0.00010973,2]
[380036259,1755493839069,-500.0,0.00010973,2]
[380036260,1755493839078,-500.0,0.00010973,2]
[380036261,1755493839087,-500.0,0.00010973,2]
[380036262,1755493839097,-500.0,0.00010973,2]
[380036263,1755493839106,-489.73005226,0.00010973,2]
[380036264,1755493839116,-500.0,0.00010973,2]
[380036265,1755493839482,-500.0,0.00010973,2]
[380036266,1755493839509,-500.0,0.00010973,2]
[380036267,1755493839518,-500.0,0.00010973,2]
[380036268,1755493839527,-500.0,0.00010973,2]
[380036269,1755493839536,-500.0,0.00010973,2]
[380036270,1755493839546,-500.0,0.00010973,2]
[380036271,1755493839555,-150.0,0.00010973,2]
[380036272,1755493839565,-150.86263942,0.00010973,2]
[380036273,1755493839574,-284.18670159,0.00010973,2]
[380036274,1755493839583,-150.0,0.00010973,2]
[380036275,1755493839592,-150.0,0.00010973,2]
[380036276,1755493839602,-500.0,0.00010973,2]
[380036277,1755493839611,-204.64044887,0.00010973,2]
[380036278,1755493839621,-214.33516346,0.00010973,2]
[380036279,1755493839630,-500.0,0.00010973,2]
[380036280,1755493839639,-150.0,0.00010973,2]
[380036281,1755493839649,-729.0,0.00010973,2]
[380036282,1755493839659,-500.0,0.00010973,2]
[380036283,1755493839668,-3454.0,0.00010973,2]
[380036284,1755493839679,-150.0,0.00010973,2]
[380036285,1755493839689,-150.0,0.00010973,2]
[380036286,1755493839698,-1622.0,0.00010973,2]
[380036287,1755493839707,-150.0,0.00010973,2]
[380036288,1755493839717,-500.0,0.00010973,2]
[380036289,1755493839726,-500.0,0.00010973,2]
[380036290,1755493839736,-150.0,0.00010973,2]
[380036291,1755493839745,-989.0,0.00010973,2]
[380036292,1755493839756,-150.0,0.00010973,2]
[380036293,1755493839766,-474.0,0.00010973,2]
[380036294,1755493839776,-500.0,0.00010973,2]
[380036295,1755493839785,-500.0,0.00010973,2]
[380036296,1755493839794,-151.31924293,0.00010989,2]
[380036297,1755493839804,-500.0,0.00010989,2]
[380036298,1755493839813,-22000.0,0.0001099,2]
[380036299,1755493839823,-151.0,0.00010992,2]
[380036300,1755493839832,-160.0,0.00010992,2]
[380036301,1755493839841,-500.0,0.00010992,2]
[380036302,1755493839851,-187.78006525,0.00010992,2]
[380036303,1755493839860,-263.68857198,0.00010992,2]
[380036304,1755493839870,-646.65982734,0.00010992,2]
[380036305,1755493839879,-151.0,0.00010992,2]
[380036306,1755493839889,-151.0,0.00010992,2]
[380036307,1755493839899,-151.0,0.00010992,2]
[380036308,1755493839908,-151.0,0.00010992,2]
[380036309,1755493839917,-151.0,0.00010992,2]
[380036310,1755493839926,-500.0,0.00010992,2]
[380036311,1755493839935,-151.0,0.00010992,2]
[380036312,1755493839944,-500.0,0.00010992,2]
[380036313,1755493839954,-151.0,0.00010992,2]
[380036314,1755493839963,-151.0,0.00010992,2]
[380036315,1755493839973,-151.0,0.00010992,2]
[380036316,1755493839982,-500.0,0.00010992,2]
[380036317,1755493839991,-151.0,0.00010992,2]
[380036318,1755493840001,-500.0,0.00010992,2]
[380036319,1755493840010,-500.0,0.00010992,2]
[380036320,1755493840020,-151.0,0.00010992,2]
[380036322,1755493840029,-500.0,0.00010992,2]
[380036324,1755493840039,-151.0,0.00010992,2]
[380036326,1755493840048,-500.0,0.00010992,2]
[380036328,1755493840060,-151.0,0.00010992,2]
[380036330,1755493840070,-500.0,0.00010992,2]
[380036332,1755493840080,-151.0,0.00010992,2]
[380036335,1755493840089,-500.0,0.00010992,2]
[380036337,1755493840099,-268.12921336,0.00010992,2]
[380036338,1755493840108,-500.0,0.00010992,2]
[380036339,1755493840118,-200.0,0.00010992,2]
[380036340,1755493840128,-500.0,0.00010992,2]
[380036341,1755493840137,-500.0,0.00010992,2]
[380036342,1755493840146,-300.0,0.00010992,2]
[380036343,1755493840155,-500.0,0.00010992,2]
[380036344,1755493840164,-500.0,0.00010992,2]
[380036345,1755493840174,-176.50660503,0.00010992,2]
[380036346,1755493840184,-150.0,0.00010993,2]
[380036347,1755493840194,-500.0,0.00010993,2]
[380036348,1755493840206,-150.0,0.00010993,2]
[380036349,1755493840215,-500.0,0.00010993,2]
[380036350,1755493840225,-251.71510553,0.00010993,2]
[380036351,1755493840234,-150.0,0.00010993,2]
[380036352,1755493840245,-500.0,0.00010993,2]
[380036353,1755493840255,-150.0,0.00010993,2]
[380036354,1755493840265,-1000.0,0.00010999,2]
[380036355,1755493840276,-1000.0,0.00010999,2]
[380036356,1755493840286,-7830.26,0.00010999,2]
[380036357,1755493840295,-7544.31,0.00010999,2]
[380036358,1755493840305,-150.0,0.00010999,2]
[380036359,1755493840314,-1000.0,0.00010999,2]
[380036360,1755493840323,-1028.12241578,0.00010999,3]
[380036361,1755493840333,-1028.12241578,0.00010999,3]
[380036362,1755493840342,-1028.12241578,0.00010999,3]
[380036363,1755493840351,-1028.12241576,0.00010999,3]
[380036364,1755493840361,-1028.12241578,0.00010999,3]
[380036365,1755493840371,-1028.12241578,0.00010999,3]
[380036366,1755493840380,-1028.12241578,0.00010999,3]
[380036367,1755493840389,-1028.12241578,0.00010999,3]
[380036368,1755493840399,-1028.12241578,0.00010999,3]
[380036369,1755493840408,-4000.0,0.00010999,2]
[380036370,1755493840417,-150.0,0.00010999,2]
[380036371,1755493840427,-150.0,0.00010999,2]
[380036372,1755493840437,-150.0,0.00010999,2]
[380036373,1755493840447,-10511888.50305876,0.00011,2]
[380036374,1755493840456,-250.0,0.00011,2]
[380036375,1755493840466,-250.0,0.00011,2]
[380036376,1755493840475,-250.0,0.00011,2]
[380036377,1755493840484,-250.0,0.00011,2]
[380036378,1755493840494,-250.0,0.00011,2]
[380036379,1755493840503,-250.0,0.00011,2]
[380036380,1755493840512,-250.0,0.00011,2]
[380036381,1755493840522,-250.0,0.00011,2]
[380036382,1755493840531,-250.0,0.00011,2]
[380036383,1755493840541,-250.0,0.00011,2]
[380036384,1755493840551,-250.0,0.00011,2]
[380036385,1755493840560,-250.0,0.00011,2]
[380036386,1755493840571,-250.0,0.00011,2]
[380036387,1755493840580,-250.0,0.00011,2]
[380036388,1755493840589,-250.0,0.00011,2]
[380036389,1755493840599,-250.0,0.00011,2]
[380036390,1755493840608,-250.0,0.00011,2]
[380036391,1755493840617,-250.0,0.00011,2]
[380036392,1755493840627,-250.0,0.00011,2]
[380036393,1755493840636,-250.0,0.00011,2]
[380036394,1755493840645,-250.0,0.00011,2]
[380036395,1755493840655,-250.0,0.00011,2]
[380036396,1755493840664,-250.0,0.00011,2]
[380036397,1755493840674,-250.0,0.00011,2]
[380036398,1755493840683,-250.0,0.00011,2]
[380036399,1755493840692,-250.0,0.00011,2]
[380036400,1755493840702,-250.0,0.00011,2]
[380036401,1755493840711,-250.0,0.00011,2]
[380036402,1755493840721,-250.0,0.00011,2]
[380036403,1755493840730,-250.0,0.00011,2]
[380036404,1755493840739,-162.6,0.00011,2]
[380036405,1755493840749,-21000.93,0.00011,2]
[380036406,1755493840758,-448330.91,0.00011,2]
[380036407,1755493840768,-435716.73615089,0.00011,2]
[380036408,1755493840777,-7000.0,0.00011,2]
[380036409,1755493840787,-7000.0,0.00011,2]
[380036410,1755493840797,-7376.23672919,0.00011022,2]
[380036411,1755493840806,-1000.0,0.00011046,2]
[380036412,1755493840815,-500.0,0.00011047,2]
[380036413,1755493840824,-1085.0,0.00011071,2]
[380036414,1755493840834,-797.31,0.00011071,2]
[380036415,1755493840844,-153.08,0.00011084,2]
[380036416,1755493840853,-150.0,0.00011088,2]
[380036417,1755493840862,-809.11720817,0.00011088,2]
[380036418,1755493840871,-1031.22781433,0.00011088,2]
[380036419,1755493840881,-1253.33842049,0.00011088,2]
[380036420,1755493840890,-1475.44902666,0.00011088,2]
[380036421,1755493840900,-1697.55963282,0.00011088,2]
[380036422,1755493840909,-1919.67023898,0.00011089,2]
[380036423,1755493840918,-2141.78084515,0.00011089,2]
[380036424,1755493840927,-2363.89145131,0.00011089,2]
[380036425,1755493840937,-2586.00205746,0.00011089,2]
[380036426,1755493840946,-150.0,0.00011098,2]
[380036427,1755493840956,-611497.07703745,0.00011099,2]
[380036428,1755493840966,-239622.48257329,0.00011099,2]
[380036429,1755493840985,-500.0,0.00011102,2]
[380036430,1755493840995,-1768.16735035,0.00011155,2]
[380036431,1755493841005,-500.0,0.00011157,2]
[380036432,1755493841015,-500.0,0.00011212,2]
[380036433,1755493841024,-819.30705825,0.0001124,2]
[380036434,1755493841034,-500.0,0.00011247,2]
[380036435,1755493841043,-500.0,0.00011247,2]
[380036436,1755493841052,-208.31843497,0.00011247,2]
[380036437,1755493841062,-150.0,0.00011247,2]
[380036438,1755493841071,-242.5585184,0.00011247,2]
[380036439,1755493841081,-500.0,0.00011247,2]
[380036440,1755493841091,-500.0,0.00011247,2]
[380036441,1755493841100,-254.64789077,0.00011247,2]
[380036442,1755493841110,-729.0,0.00011247,2]
[380036443,1755493841122,-500.0,0.00011247,2]
[380036444,1755493841135,-3454.0,0.00011247,2]
[380036445,1755493841145,-150.0,0.00011247,2]
[380036446,1755493841155,-150.0,0.00011247,2]
[380036447,1755493841166,-1622.0,0.00011247,2]
[380036448,1755493841177,-150.0,0.00011247,2]
[380036449,1755493841186,-500.0,0.00011247,2]
[380036450,1755493841197,-500.0,0.00011247,2]
[380036451,1755493841208,-989.0,0.00011247,2]
[380036452,1755493841217,-150.0,0.00011247,2]
[380036453,1755493841227,-474.0,0.00011247,2]
[380036454,1755493841236,-500.0,0.00011247,2]
[380036455,1755493841248,-500.0,0.00011247,2]
[380036456,1755493841258,-150.0,0.00011267,2]
[380036457,1755493841269,-500.0,0.00011267,2]
[380036458,1755493841280,-269.64252954,0.00011267,2]
[380036459,1755493841290,-500.0,0.00011267,2]
[380036460,1755493841299,-500.0,0.00011267,2]
[380036461,1755493841308,-500.0,0.00011267,2]
[380036462,1755493841318,-4000.0,0.00011273,2]
[380036463,1755493841327,-500.0,0.00011322,2]
[380036464,1755493841337,-200.0,0.00011324,2]
[380036465,1755493841346,-500.0,0.00011377,2]
[380036466,1755493841356,-200.0,0.00011422,2]
[380036467,1755493841365,-500.0,0.00011432,2]
[380036468,1755493841374,-500.0,0.00011487,2]
[380036469,1755493841383,-4923.41751996,0.00011492,2]
[380036470,1755493841393,-2751.0,0.00011507,2]
[380036471,1755493841403,-1000.0,0.00011521,2]
[380036472,1755493841412,-1000.0,0.00011521,2]
[380036473,1755493841421,-1000.67120204,0.00011521,2]
[380036474,1755493841431,-1000.0,0.00011521,2]
[380036475,1755493841441,-1000.0,0.00011521,2]
[380036476,1755493841453,-1000.0,0.00011521,2]
[380036477,1755493841464,-1000.0,0.00011521,2]
[380036478,1755493841474,-1000.0,0.00011521,2]
[380036479,1755493841484,-500.0,0.00011521,2]
[380036480,1755493841493,-1000.0,0.00011521,2]
[380036481,1755493841503,-932.52438624,0.00011521,2]
[380036482,1755493841513,-1000.0,0.00011521,2]
[380036483,1755493841522,-567.3102294,0.00011521,2]
[380036484,1755493841532,-1000.0,0.00011521,2]
[380036485,1755493841541,-1000.0,0.00011521,2]
[380036486,1755493841551,-580.93814385,0.00011521,2]
[380036487,1755493841561,-1000.0,0.00011521,2]
[380036488,1755493841571,-500.0,0.00011521,2]
[380036489,1755493841581,-294.91110892,0.00011521,2]
[380036490,1755493841591,-1000.0,0.00011521,2]
[380036491,1755493841600,-500.80732442,0.00011521,2]
[380036492,1755493841610,-1000.0,0.00011521,2]
[380036493,1755493841619,-600.30022113,0.00011521,2]
[380036494,1755493841629,-1000.0,0.00011521,2]
[380036495,1755493841639,-1000.0,0.00011521,2]
[380036496,1755493841649,-563.17614164,0.00011521,2]
[380036497,1755493841658,-500.0,0.00011521,2]
[380036498,1755493841668,-264.1868608,0.00011521,2]
[380036499,1755493841678,-620.08162908,0.00011521,2]
[380036500,1755493841687,-500.0,0.00011521,2]
[380036501,1755493841702,-729.0,0.00011521,2]
[380036502,1755493841713,-500.0,0.00011521,2]
[380036503,1755493841725,-3454.0,0.00011521,2]
[380036504,1755493841735,-150.0,0.00011521,2]
[380036505,1755493841746,-156.65280148,0.00011521,2]
[380036506,1755493841756,-1622.0,0.00011521,2]
[380036507,1755493841766,-150.0,0.00011521,2]
[380036508,1755493841776,-500.0,0.00011521,2]
[380036509,1755493841786,-500.0,0.00011521,2]
[380036510,1755493841797,-989.0,0.00011521,2]
[380036511,1755493841808,-200.0,0.00011521,2]
[380036512,1755493841818,-474.0,0.00011521,2]
[380036513,1755493841828,-500.0,0.00011521,2]
[380036514,1755493841839,-500.0,0.00011521,2]
[380036515,1755493841849,-171.5,0.00011522,2]
[380036516,1755493841859,-151.0,0.0001154,2]
[380036517,1755493841869,-151.0,0.0001154,2]
[380036518,1755493841879,-151.0,0.0001154,2]
[380036519,1755493841889,-150.0,0.00011541,2]
[380036520,1755493841900,-212.54237001,0.00011541,2]
[380036521,1755493841910,-500.0,0.00011541,2]
[380036522,1755493841920,-629.59873659,0.00011541,2]
[380036523,1755493841929,-500.0,0.00011542,2]
[380036524,1755493841939,-4000.0,0.00011547,2]
[380036525,1755493841949,-1000.0,0.000116,2]
[380036526,1755493841959,-1085.0,0.00011625,2]
[380036527,1755493841968,-894.807,0.00011678,2]
[380036528,1755493841978,-1173.036,0.00011678,2]
[380036529,1755493841988,-717.0,0.00011678,2]
[380036530,1755493842000,-6090.0,0.00011678,2]
[380036531,1755493842010,-2235.0,0.00011678,2]
[380036532,1755493842019,-1000.0,0.000117,2]
[380036533,1755493842031,-1000.0,0.000117,2]
[380036534,1755493842042,-150.0,0.00011729,2]
[380036535,1755493842054,-4229.0,0.0001173,2]
[380036536,1755493842065,-200.0,0.00011735,2]
[380036537,1755493842076,-150.0,0.0001177,2]
[380036538,1755493842086,-500.0,0.00011795,2]
[380036539,1755493842097,-500.0,0.00011795,2]
[380036540,1755493842110,-729.0,0.00011795,2]